[Event "15th Chennai GM Open 2025"]
[Site "Chennai"]
[Date "2025.01.05"]
[Round "6.8"]
[White "Mayank Chakraborty"]
[Black "Mummana, Venkata Ruthvik"]
[Result "1/2-1/2"]
[ECO "C02"]
[WhiteElo "2457"]
[BlackElo "2186"]
[Annotator "TA"]
[PlyCount "110"]
[EventDate "2025.01.02"]
[EventType "swiss"]
[EventCountry "IND"]
[SourceTitle "playchess.com"]
[Source "ChessBase"]
[SourceQuality "1"]
[TimeControl "5400+30"]

{[%evp 20,110,0,-2,28,40,29,35,36,21,42,49,40,45,46,44,47,57,62,63,46,50,45,48,50,43,59,54,61,52,62,15,52,62,87,86,79,79,110,110,110,110,110,110,110,110,110,110,110,110,110,110,110,110,110,110,110,12,110,0,117,117,117,117,117,117,117,117,164,117,117,117,117,117,412,409,404,400,422,277,279,284,270,285,248,236,503,0,137,0,0,-386,-416]} 1. e4 {[%emt 0:00:02]} e6 {[%emt 0:03:01]} 2. d4 {[%emt 0:00:03]} d5 {[%emt 0:00:33]} 3. e5 {[%emt 0:00:01]} c5 {[%emt 0:00:11]} 4. c3 {[%emt 0:00:02]} Nc6 {[%emt 0:00:32]} 5. Nf3 {[%emt 0:00:01]} Qb6 {[%emt 0:00:35]} 6. a3 {[%emt 0:00:02]} Nh6 {[%emt 0:00:53]} 7. Bd3 {[%emt 0:00:05]} cxd4 {[%emt 0:02:05]} 8. O-O {[%emt 0:00:03]} Bd7 {[%emt 0:02:43]} 9. b4 {[%emt 0:00:02]} Rc8 {[%emt 0:09:36]} 10. Bf4 {[%emt 0:01:25]} Be7 {[%emt 0:13:03]} 11. cxd4 {[%emt 0:02:50]} Nf5 {[%emt 0:09:31]} 12. Bxf5 {[%emt 0:06:46]} exf5 {[%emt 0:02:08]} 13. Nc3 {[%emt 0:00:25]} Be6 $1 {[%emt 0:04:04]} 14. Na4 {[%emt 0:03:25]} Qd8 {[%emt 0:07:42]} 15. Nc5 {[%emt 0:04:18]} Rc7 {[%emt 0:08:13]} 16. Qa4 {[%emt 0:08:22]} b6 {[%emt 0:02:36]} 17. Na6 {[%emt 0:15:20]} Rc8 {[%emt 0:00:13]} 18. Rac1 {[%emt 0:00:46]} Qd7 {[%emt 0:01:09]} 19. b5 {[%emt 0:03:20]} Na5 {[%emt 0:00:56]} 20. Rxc8+ {[%emt 0:00:05]} Qxc8 {[%emt 0:00:06]} 21. Rc1 {[%emt 0:00:09]} Nc4 {[%emt 0:00:22]} 22. Bg5 {[%emt 0:01:21]} Bxg5 {[%emt 0:13:56]} 23. Nxg5 {[%emt 0:00:06]} O-O {[%emt 0:00:15]} 24. Nb4 {[%emt 0:01:53]} Qd7 {[%emt 0:03:29]} 25. Nc6 {[%emt 0:01:03]} (25. Nh3 $1 $14) 25... Ra8 {[%emt 0:04:38]} 26. Nh3 {[%emt 0:08:51]} Qb7 {[%emt 0:02:13]} 27. Nb4 {[%emt 0:01:57]} Rc8 {[%emt 0:04:05] [#]} 28. Rc2 $1 {[%emt 0:06:33]} Nb2 {[%emt 0:02:44]} 29. Qb3 {[%emt 0:00:09]} (29. Rxb2 $2 Rc1+) (29. Rxc8+ Qxc8 30. Qc2 Qxc2 31. Nxc2 Nd1 $17) 29... Rxc2 {[%emt 0:00:13]} 30. Qxc2 {[%emt 0:00:11]} Nc4 {[%emt 0:00:05]} 31. Nf4 {[%emt 0:02:42]} Qd7 {[%emt 0:00:45]} 32. a4 {[%emt 0:01:03]} h6 {[%emt 0:00:32]} 33. h4 {[%emt 0:01:42]} g6 {[%emt 0:00:14]} 34. g3 {[%emt 0:01:19]} Kg7 {[%emt 0:00:39]} 35. Kh2 {[%emt 0:00:51]} Qd8 {[%emt 0:00:24]} 36. Qc1 {[%emt 0:01:31]} Qd7 {[%emt 0:00:45]} 37. Qh1 {[%emt 0:01:45]} Nd2 {[%emt 0:01:37]} 38. Qg2 {[%emt 0:04:08]} (38. Nbxd5 Ne4 39. Nxe6+ fxe6 $17) (38. Qd1 $16 Nc4 39. Qc1) 38... Kh8 {[%emt 0:02:08]} (38... Qe7 $11 {remains equal.} 39. Nbxd5 (39. Nfxd5 Bxd5 40. Nxd5 Qa3 $11) 39... Qb7) 39. Qh1 {[%emt 0:05:59]} (39. Nbxd5 Ne4 $14) 39... Kg7 $1 {[%emt 0:00:01]} 40. Qd1 {[%emt 0:00:31]} (40. Nbxd5 Ne4 41. Nxe6+ Qxe6 $19 (41... fxe6 42. Nf4 $11)) 40... Nc4 {[%emt 0:00:18]} 41. Qc1 {[%emt 0:00:16]} Qd8 {[%emt 0:01:04]} 42. Qc3 {[%emt 0:01:16]} Qd7 {[%emt 0:00:20]} 43. Kg1 {[%emt 0:00:33]} Qd8 {[%emt 0:00:27]} (43... Qb7 $16 44. Qd3 Qd7) 44. Kf1 {[%emt 0:00:42]} (44. Nc6 $18 Qd7 45. Qb4) 44... Qd7 $16 {[%emt 0:00:31]} 45. Qc2 {[%emt 0:01:02]} Qd8 {[%emt 0:00:21]} 46. Ke1 {[%emt 0:00:17]} g5 $2 {[%emt 0:00:51][%mdl 8192]} (46... Qd7 $16 47. Qd1 (47. Qc1 Qd8 $16) 47... Na5) 47. Nh5+ $18 {[%emt 0:00:25]} Kg6 {[%emt 0:00:40]} 48. Nf6 {[%emt 0:00:48]} g4 {[%emt 0:00:29]} 49. Nxg4 {[%emt 0:03:10]} Qe7 {[%emt 0:00:24]} 50. Nc6 {[%emt 0:01:36]} Qa3 {[%emt 0:00:30]} 51. Nf6 $1 {[%emt 0:01:47]} (51. Nxa7 Qa1+ 52. Ke2 Qxd4 $19) 51... Qf3 {[%emt 0:00:39]} 52. Qd1 {[%emt 0:01:43]} Qg2 $2 {[%emt 0:00:29]} (52... Qc3+ {keeps fighting.} 53. Kf1 Kg7 54. Nh5+ (54. Nxa7 Nb2 $16) 54... Kh7) 53. Qh5+ $2 {[%emt 0:03:52]} (53. Qd3 $18 {and White stays clearly on top.}) 53... Kg7 $16 {[%emt 0:00:01]} 54. Ne8+ {[%emt 0:01:07]} (54. Nxa7 $6 Qg1+ 55. Ke2 Nb2 56. Ne8+ Kh7 57. Nf6+ Kg7 58. Ne8+ Kg8 59. Nf6+ (59. Qxh6 $2 Qd1+ 60. Ke3 Nc4+ 61. Kf4 Qg4#) 59... Kg7 $11) ({Only move:} 54. Ke2 $1 $16 {[%cal Oc6e7] Ne7! is the strong threat.} Qh1 55. Nd8 (55. Nxa7 Nb2 $11)) 54... Kh7 $11 {[%emt 0:00:20]} 55. Nd6 $2 {[%emt 0:01:09][%mdl 8192]} (55. Nxa7 Qh1+ 56. Ke2 Qe4+ 57. Kd1 (57. Kf1 Nd2+ 58. Kg1 Qe1+ 59. Kh2 Qxf2+ 60. Kh1 Qf1+ 61. Kh2 Nf3+) 57... Qxd4+ 58. Ke1 Nxe5 (58... Qxe5+ $2 59. Kf1 $19) 59. Nf6+ (59. Nc6 $2 Qc3+ 60. Kd1 Ng4 $19) 59... Kg7 60. Ne8+ Kf8 $19) ({Resist} 55. Nf6+ $6 Kg7 $16) (55. Ke2 $11 {and White has nothing to worry.} Qe4+ 56. Kd1 Qd3+ 57. Ke1) 55... f4 {[%emt 0:00:46]} 1/2-1/2

[Event "15th Chennai GM Open 2025"]
[Site "Chennai"]
[Date "2025.01.05"]
[Round "6.9"]
[White "Rios Gomez, Cristhian Camilo"]
[Black "Aditya Varun Gampa"]
[Result "1/2-1/2"]
[ECO "D02"]
[WhiteElo "2435"]
[BlackElo "2180"]
[Annotator "TA"]
[PlyCount "90"]
[EventDate "2025.01.02"]
[EventType "swiss"]
[EventCountry "IND"]
[SourceTitle "playchess.com"]
[Source "ChessBase"]
[SourceQuality "1"]
[TimeControl "5400+30"]

{[%evp 11,90,0,15,27,29,-5,-12,-20,8,0,23,17,10,-33,7,0,68,38,41,34,35,39,50,-20,-6,-47,-47,-34,-38,-113,-106,-109,-72,-81,-87,-109,-119,-137,-129,-147,-122,-118,-116,-204,-191,-212,-225,-217,-222,-227,-203,-197,-200,-214,-203,-220,-204,-211,-199,-198,-174,-183,-154,-155,-104,-143,-164,-157,-8,-8,-43,-40,0,0,0,0,0,0,0,0,0]} 1. d4 {[%emt 0:03:46]} Nf6 {[%emt 0:00:08]} 2. Nf3 {[%emt 0:00:09]} d5 {[%emt 0:00:07]} 3. Bf4 {[%emt 0:00:09][%cal Bc1f4,Bf4g3,Bg3h4,Bh4f6][%mdl 32]} e6 {[%emt 0:01:19]} 4. e3 {[%emt 0:00:40]} c5 {[%emt 0:00:03]} 5. Nbd2 {[%emt 0:01:24]} Nc6 {[%emt 0:00:23]} 6. c3 {[%emt 0:00:17]} cxd4 {[%emt 0:01:25]} 7. exd4 {[%emt 0:00:14]} Nh5 {[%emt 0:00:11]} 8. Bg3 {[%emt 0:02:57]} g6 {[%emt 0:02:25]} 9. Bh4 {[%emt 0:01:09]} Qc7 {[%emt 0:03:33]} (9... f6 $5) 10. g4 {[%emt 0:07:33]} Nf4 {[%emt 0:00:39]} 11. Bf6 {[%emt 0:03:13]} Rg8 {[%emt 0:00:02]} 12. Qc2 {[%emt 0:02:57]} Bd7 {[%emt 0:02:32]} 13. O-O-O {[%emt 0:02:13]} Bd6 {[%emt 0:12:16]} (13... Bg7 $11 14. Bxg7 Rxg7) 14. Kb1 {[%emt 0:12:16]} h5 {[%emt 0:05:51]} 15. h3 {[%emt 0:01:25]} Be7 {[%emt 0:01:36]} 16. Bxe7 {[%emt 0:00:41]} Kxe7 {[%emt 0:04:40]} 17. g5 {[%emt 0:00:23]} (17. Nb3 $14) 17... e5 $1 $11 {[%emt 0:02:41]} 18. Qb3 {[%emt 0:00:42]} exd4 {[%emt 0:03:13]} 19. Nxd4 {[%emt 0:02:20]} Kf8 {[%emt 0:00:42]} 20. Nxc6 {[%emt 0:11:27]} ({White should try} 20. Qa4 $15) 20... bxc6 $17 {[%emt 0:00:26]} 21. c4 {[%emt 0:00:28]} Kg7 {[%emt 0:01:40]} 22. Qc3+ {[%emt 0:02:41]} Kh7 {[%emt 0:00:56]} 23. cxd5 {[%emt 0:00:17]} Bf5+ {[%emt 0:00:35]} 24. Ka1 {[%emt 0:00:08]} Nxd5 {[%emt 0:00:08]} 25. Qc4 {[%emt 0:07:54]} Rgd8 {[%emt 0:10:27]} 26. Bg2 {[%emt 0:02:59]} Rab8 {[%emt 0:01:22]} 27. Bxd5 {[%emt 0:02:42]} (27. Ne4 $17 Bxe4 28. Qxe4) 27... Rxd5 $19 {[%emt 0:00:51]} 28. Ne4 {[%emt 0:00:07]} Bxe4 {[%emt 0:07:00]} 29. Qxe4 {[%emt 0:00:06]} Rxg5 {[%emt 0:01:32]} 30. Rd3 {[%emt 0:00:08]} Qe5 {[%emt 0:05:59]} 31. Qxe5 {[%emt 0:01:01]} Rxe5 {[%emt 0:00:02][%mdl 4096] Endgame KRR-KRR. Black is a pawn up.} 32. Rd7 {[%emt 0:00:46]} Kg7 {[%emt 0:01:11]} 33. f4 {[%emt 0:00:10]} Rf5 {[%emt 0:03:26]} 34. Rxa7 {[%emt 0:00:24]} Rxf4 {[%emt 0:00:08]} 35. Rc7 {[%emt 0:00:12]} Rf2 {[%emt 0:01:19]} 36. b3 {[%emt 0:00:19]} Ra8 {[%emt 0:02:16]} 37. a4 {[%emt 0:00:06][%cal Ba2a4,Ba4a5][%mdl 32]} Ra6 {[%emt 0:05:13]} (37... Rf3 38. Ka2 Rb8) 38. Rc1 {[%emt 0:00:12]} Rf3 {[%emt 0:01:00][%csl LRb3,LRh3]} 39. Kb2 {[%emt 0:00:05]} Rb6 {[%emt 0:01:02]} ({Better is} 39... Rxh3 $17 {Threatens to win with ...Rb6.} 40. R7xc6 Ra8) 40. Rc3 $11 {[%emt 0:00:08]} Rxc3 {[%emt 0:00:05]} 41. Kxc3 {[%emt 0:00:04]} g5 {[%emt 0:00:27]} 42. a5 {[%emt 0:00:33]} Ra6 {[%emt 0:01:23]} 43. b4 {[%emt 0:00:05]} Kf6 {[%emt 0:06:54]} 44. Kd3 {[%emt 0:04:39]} Ke6 {[%emt 0:00:45]} 45. Kd4 {[%emt 0:00:04]} f6 {[%emt 0:03:12]} 1/2-1/2

[Event "15th Chennai GM Open 2025"]
[Site "Chennai"]
[Date "2025.01.05"]
[Round "6.10"]
[White "Fedorov, Alexei"]
[Black "Sri Sai Baswanth P"]
[Result "1-0"]
[ECO "B45"]
[WhiteElo "2409"]
[BlackElo "2161"]
[Annotator "TA"]
[PlyCount "57"]
[EventDate "2025.01.02"]
[EventType "swiss"]
[EventCountry "IND"]
[SourceTitle "playchess.com"]
[Source "ChessBase"]
[SourceQuality "1"]
[TimeControl "5400+30"]

{[%evp 12,57,46,23,28,32,31,39,28,26,45,35,39,27,32,30,39,33,29,37,50,35,31,15,33,35,51,45,75,47,57,39,67,62,60,72,83,0,0,0,0,7,241,247,228,244,227,222]} 1. e4 {[%emt 0:00:04]} c5 {[%emt 0:00:20]} 2. Nf3 {[%emt 0:00:40]} e6 {[%emt 0:00:11]} 3. d4 {[%emt 0:01:17]} cxd4 {[%emt 0:00:06]} 4. Nxd4 {[%emt 0:00:03]} Nf6 {[%emt 0:00:15]} 5. Nc3 {[%emt 0:00:08]} Nc6 {[%emt 0:00:06]} 6. Ndb5 {[%emt 0:00:06]} Bc5 {[%emt 0:00:11]} 7. Bf4 {[%emt 0:00:34] Hoping for Nc7+.} O-O $1 {[%emt 0:00:14]} 8. Bc7 {[%emt 0:00:04]} Qe7 {[%emt 0:00:04] Threatens to win with ...d5.} 9. Bd6 $1 {[%emt 0:00:04]} Bxd6 {[%emt 0:00:05]} 10. Qxd6 {[%emt 0:00:04]} Qd8 {[%emt 0:00:08]} 11. O-O-O {[%emt 0:00:34]} a6 {[%emt 0:00:09]} 12. Nd4 $1 {[%emt 0:00:12]} Ne7 {[%emt 0:00:10]} 13. h4 {[%emt 0:00:56]} b5 {[%emt 0:00:17]} 14. a3 {[%emt 0:00:29]} Bb7 {[%emt 0:00:43]} 15. f3 {[%emt 0:00:09]} h5 {[%emt 0:05:27]} 16. Be2 {[%emt 0:05:50]} Re8 {[%emt 0:18:10]} 17. Nb3 {[%emt 0:02:19] Nc5 is in the air} Qb8 {[%emt 0:06:56]} 18. Na5 {[%emt 0:04:45]} Bc6 {[%emt 0:02:27]} 19. Qxb8 {[%emt 0:02:49]} Raxb8 {[%emt 0:01:00]} 20. Rd6 {[%emt 0:02:34]} Rec8 {[%emt 0:09:06]} 21. Rhd1 {[%emt 0:01:23]} Kf8 {[%emt 0:04:07]} 22. Na2 {[%emt 0:08:04] White is much more active.} Ne8 {[%emt 0:01:14]} 23. R6d2 {[%emt 0:01:51]} d5 {[%emt 0:01:54] [#]} 24. Nb4 {[%emt 0:17:06]} ({White should play} 24. Nxc6 $1 $16 Rxc6 25. Nb4) 24... dxe4 $11 {[%emt 0:02:09]} 25. Naxc6 {[%emt 0:01:19]} (25. Nxa6 exf3 26. gxf3 Rb6 27. Nxc6 Rcxc6) 25... Nxc6 {[%emt 0:00:16]} 26. Nxa6 {[%emt 0:00:06][%cal Bb4a6,Ba6b8,Bb8d7][%mdl 32]} exf3 $2 {[%emt 0:00:49]} (26... e3 $1 $11 {and Black is okay.} 27. Rd7 Rb6) 27. Nxb8 $18 {[%emt 0:00:34]} ({Less strong is} 27. Bxf3 Rb6 28. Nc5 Ne5 29. Nd7+ Nxd7 30. Rxd7 g6 $14) 27... fxe2 {[%emt 0:01:44]} 28. Nd7+ {[%emt 0:00:05]} Ke7 {[%emt 0:00:49]} 29. Rxe2 {[%emt 0:00:06]} 1-0

[Event "15th Chennai GM Open 2025"]
[Site "Chennai"]
[Date "2025.01.05"]
[Round "6.11"]
[White "Shahil Dey"]
[Black "Jval Saurin Patel"]
[Result "1-0"]
[ECO "C05"]
[WhiteElo "2374"]
[BlackElo "2064"]
[Annotator "TA"]
[PlyCount "63"]
[EventDate "2025.01.02"]
[EventType "swiss"]
[EventCountry "IND"]
[SourceTitle "playchess.com"]
[Source "ChessBase"]
[SourceQuality "1"]
[TimeControl "5400+30"]

{[%evp 15,63,0,20,13,10,14,8,-7,41,45,43,54,45,32,65,31,31,36,62,35,80,41,37,50,9,0,0,0,401,413,581,572,749,758,762,754,695,692,2104,1478,1506,1517,1437,1385,29979,29980,29985,1605,29985,3887]} 1. e4 {[%emt 0:03:09][%cal Be2e4,Be4e5][%mdl 32]} e6 {[%emt 0:00:16]} 2. d4 {[%emt 0:00:05]} d5 {[%emt 0:00:04]} 3. Nd2 {[%emt 0:00:06]} Nf6 {[%emt 0:01:04]} 4. e5 {[%emt 0:00:05]} Nfd7 {[%emt 0:00:03]} 5. f4 {[%emt 0:00:05]} c5 {[%emt 0:00:04]} 6. c3 {[%emt 0:00:04]} Nc6 {[%emt 0:00:07]} 7. Ndf3 {[%emt 0:00:05]} Qb6 {[%emt 0:00:07]} 8. a3 {[%emt 0:00:04]} a5 {[%emt 0:00:05]} 9. b3 {[%emt 0:00:03]} Be7 {[%emt 0:00:10]} 10. h4 {[%emt 0:00:16]} h6 {[%emt 0:04:23]} 11. h5 {[%emt 0:00:28] The position is equal.} f6 {[%emt 0:03:35]} (11... Rb8 $11) 12. Bd3 $14 {[%emt 0:00:15]} O-O {[%emt 0:00:18]} 13. Ne2 {[%emt 0:00:35][%cal Bg1e2,Be2g3,Bg3e4,Be4c5,Bc5e6][%mdl 32]} Qc7 {[%emt 0:02:02]} 14. Bb1 {[%emt 0:03:21]} b5 {[%emt 0:02:00]} 15. Qc2 {[%emt 0:01:44]} f5 {[%emt 0:00:13] [#]} 16. g4 $1 $36 {[%emt 0:00:06][%mdl 2048] White is more active.} Nb6 {[%emt 0:04:30]} (16... cxd4 17. cxd4) 17. Rg1 {[%emt 0:06:18]} Bd7 {[%emt 0:03:07]} 18. Ng3 {[%emt 0:01:33][%cal Rg4f5] gxf5 would now be deadly.} cxd4 {[%emt 0:09:13]} 19. gxf5 {[%emt 0:03:30]} exf5 {[%emt 0:01:04]} 20. cxd4 {[%emt 0:06:51]} Rac8 {[%emt 0:03:04]} 21. Be3 {[%emt 0:00:08] Strongly threatening Qg2.} Na7 $2 {[%emt 0:02:46][%mdl 8192] [#]} (21... a4 $11 {and Black stays safe.}) 22. Qg2 $1 $18 {[%emt 0:06:10]} Bd8 {[%emt 0:37:25] [#]} (22... Qc3+ 23. Ke2 Qxa1 24. Nxf5 Qb2+ 25. Bd2 $18) (22... a4 $142 23. Nxf5 Bb4+ 24. axb4 Bxf5 25. Bxf5 Rxf5) 23. Ne4 $1 {[%emt 0:12:35][%csl Gg1][%cal Rg2g7][%mdl 512]} Be6 {[%emt 0:05:46]} (23... Be8 24. Nd6) 24. Nc5 {[%emt 0:00:27]} Re8 {[%emt 0:00:06][%cal Bf8e8,Be8e6,Be6e7,Be7c7][%mdl 32]} 25. Nxe6 {[%emt 0:00:57]} Rxe6 {[%emt 0:00:05]} 26. Bxf5 {[%emt 0:00:09]} Re7 {[%emt 0:01:49]} 27. Rc1 {[%emt 0:00:32]} Qxc1+ {[%emt 0:01:30]} 28. Bxc1 {[%emt 0:00:06]} Rxc1+ {[%emt 0:00:06]} 29. Kd2 {[%emt 0:00:05]} Rc6 {[%emt 0:00:05]} 30. e6 {[%emt 0:00:52]} Kf8 {[%emt 0:03:54]} 31. Ne5 {[%emt 0:00:06]} (31. Qg6 $142 Rcxe6 32. Bxe6 Rc7 33. Re1 Nc4+ 34. bxc4 Bh4 35. Nxh4 Re7 36. Re5 (36. cxd5 Nc8 37. Qf5+ Ke8 38. Bxc8 Rxe1 39. Ng6 Rd1+ 40. Kxd1 Kd8 41. Qd7#) (36. Qf5+ Ke8 37. Qxd5 Rxe6 38. Rxe6+ Kf7 39. Qf5+ Kg8 40. Re8#) 36... Rc7 37. Bxd5 (37. cxd5 Rb7) 37... Re7 38. Rf5+ Rf7 39. Qxf7#) 31... Rec7 {[%emt 0:00:18]} 32. Nd7+ {[%emt 0:00:31] Weighted Error Value: White=0.07 (flawless) /Black=1.21.  Loses game:     	---       	Black=1      Mistake:       	---       	Black=2      Inaccurate:     	White=3     	Black=4      OK:         	White=8     	Black=4      Best:        	---       	Black=1      Strong:       	White=1     	---        Brilliant:      	White=1     	---} (32. Qg6 $142 Bf6 33. Nd7+ Ke7 34. Nxf6 (34. Qf7+ Kd6 $18) 34... gxf6 35. Qf7+ (35. Qxh6 Rxe6 36. Rg7+ Kd6 $18) 35... Kd6 36. e7 (36. Qxf6 Rc2+ 37. Bxc2 Re7 $18) 36... Rc2+ 37. Bxc2) 1-0

[Event "15th Chennai GM Open 2025"]
[Site "Chennai"]
[Date "2025.01.05"]
[Round "6.12"]
[White "Varun, V."]
[Black "Venkatesh, M.R."]
[Result "1/2-1/2"]
[ECO "B31"]
[WhiteElo "2173"]
[BlackElo "2362"]
[Annotator "TA"]
[PlyCount "61"]
[EventDate "2025.01.02"]
[EventType "swiss"]
[EventCountry "IND"]
[SourceTitle "playchess.com"]
[Source "ChessBase"]
[SourceQuality "1"]
[TimeControl "5400+30"]

{[%evp 14,61,20,12,32,18,10,11,44,36,46,45,47,30,32,50,43,45,35,32,51,59,97,59,65,59,66,52,61,32,50,50,47,39,52,0,0,0,35,0,0,0,43,0,0,0,46,0,0,0]} 1. e4 {[%emt 0:00:04]} c5 {[%emt 0:02:16]} 2. Nf3 {[%emt 0:00:06]} Nc6 {[%emt 0:00:04]} 3. Bb5 {[%emt 0:00:05]} g6 {[%emt 0:00:40]} 4. O-O {[%emt 0:00:33]} Bg7 {[%emt 0:00:07]} 5. Re1 {[%emt 0:00:23]} e5 {[%emt 0:10:14]} 6. Bxc6 {[%emt 0:00:10]} dxc6 {[%emt 0:00:11]} 7. d3 {[%emt 0:00:29]} Qe7 {[%emt 0:04:26]} 8. a3 {[%emt 0:00:31][%cal Ob2b4]} a5 {[%emt 0:02:17]} 9. Nbd2 {[%emt 0:06:36]} Be6 {[%emt 0:04:21]} 10. Nc4 {[%emt 0:00:48]} f6 {[%emt 0:06:34]} 11. Be3 {[%emt 0:01:05]} b5 {[%emt 0:23:34]} 12. Ncd2 {[%emt 0:00:06]} Nh6 {[%emt 0:00:12][%cal Bg8h6,Bh6f7,Bf7d6][%mdl 32]} 13. h3 {[%emt 0:14:13] Prevents Ng4} Nf7 {[%emt 0:02:49]} 14. Nb3 {[%emt 0:03:27]} c4 {[%emt 0:02:04]} 15. dxc4 {[%emt 0:05:05]} Bxc4 {[%emt 0:05:39]} 16. Nfd2 {[%emt 0:00:08]} Be6 {[%emt 0:01:52]} 17. a4 {[%emt 0:02:23]} b4 {[%emt 0:02:36]} 18. Qe2 {[%emt 0:09:16]} Nd6 $1 {[%emt 0:01:23] Inhibits Nc4.} 19. Bb6 {[%emt 0:02:00]} O-O {[%emt 0:11:25]} 20. Nxa5 {[%emt 0:03:23][%cal Od2b3]} Rfb8 $1 {[%emt 0:00:51]} 21. Nac4 {[%emt 0:13:49]} ({Much worse is} 21. Nxc6 Qb7 22. Nxb8 Qxb6 $15) 21... Nxc4 {[%emt 0:01:05]} 22. Nxc4 {[%emt 0:00:07]} Qf7 {[%emt 0:00:48]} 23. Nd6 {[%emt 0:00:23]} Qd7 {[%emt 0:00:06]} 24. Nc4 {[%emt 0:01:05]} (24. Bc5 $5 Ra5 25. Qe3 $14) 24... Qf7 {[%emt 0:00:56]} 25. Nd6 {[%emt 0:00:05]} Qd7 {[%emt 0:00:03]} 26. Nc4 {[%emt 0:00:05]} (26. Bc5 $5 Ra5 27. Qe3 $11) 26... Qf7 {[%emt 0:00:38]} 27. Nd6 {[%emt 0:00:11]} Qd7 {[%emt 0:00:03]} 28. Nc4 {[%emt 0:00:03] Black must now prevent a5.} (28. Bc5 $5 Ra5 29. Qe3 $14) 28... Qf7 {[%emt 0:00:03]} 29. Nd6 {[%emt 0:00:04]} Qd7 {[%emt 0:00:04]} 30. Nc4 {[%emt 0:00:03]} (30. Bc5 $14 Ra5 31. Qe3) 30... Qf7 $11 {[%emt 0:00:03]} 31. Nd6 {[%emt 0:00:05]} 1/2-1/2

[Event "15th Chennai GM Open 2025"]
[Site "Chennai"]
[Date "2025.01.05"]
[Round "6.13"]
[White "Podolchenko, Evgeniy"]
[Black "Shreyash, Singh"]
[Result "1/2-1/2"]
[ECO "E41"]
[WhiteElo "2346"]
[BlackElo "2000"]
[Annotator "TA"]
[PlyCount "69"]
[EventDate "2025.01.02"]
[EventType "swiss"]
[EventCountry "IND"]
[SourceTitle "playchess.com"]
[Source "ChessBase"]
[SourceQuality "1"]
[TimeControl "5400+30"]

{[%evp 25,69,27,34,0,0,0,0,0,0,0,0,-16,-11,-13,-13,-108,-100,-97,-72,-192,-170,-475,-492,-444,-387,-352,-234,-322,-234,-234,-225,-297,-298,-273,0,0,0,0,0,0,0,0,0,0,0,0]} 1. d4 {[%emt 0:00:03]} Nf6 {[%emt 0:00:04]} 2. c4 {[%emt 0:00:04]} e6 {[%emt 0:00:03]} 3. Nc3 {[%emt 0:00:04]} Bb4 {[%emt 0:00:04]} 4. e3 {[%emt 0:00:05]} O-O {[%emt 0:00:12]} 5. Bd3 {[%emt 0:00:16]} c5 {[%emt 0:00:07]} 6. Nf3 {[%emt 0:00:12]} Nc6 {[%emt 0:00:35]} 7. O-O {[%emt 0:00:08]} Bxc3 {[%emt 0:00:02]} 8. bxc3 {[%emt 0:00:05]} d6 {[%emt 0:00:03]} 9. e4 {[%emt 0:06:28]} e5 {[%emt 0:00:06]} 10. d5 {[%emt 0:00:24]} Ne7 {[%emt 0:00:04]} 11. Nh4 {[%emt 0:01:25]} h6 {[%emt 0:00:59]} 12. f4 {[%emt 0:02:26]} Ng6 {[%emt 0:00:13]} 13. Nxg6 {[%emt 0:07:40]} fxg6 {[%emt 0:00:07]} 14. fxe5 {[%emt 0:00:36]} dxe5 {[%emt 0:00:07]} 15. Rb1 {[%emt 0:00:54]} Qc7 {[%emt 0:04:58]} 16. Rb2 {[%emt 0:02:02]} Bd7 {[%emt 0:05:32]} 17. Rbf2 {[%emt 0:00:55][%cal Oc1h6]} Qd6 {[%emt 0:05:20]} 18. Qb3 {[%emt 0:03:58]} b6 {[%emt 0:01:07]} 19. Qa3 {[%emt 0:00:24]} (19. Qd1 {feels hotter.} Ng4 20. Rxf8+ Rxf8 21. h4) 19... g5 {[%emt 0:01:33]} 20. h3 {[%emt 0:04:03]} (20. Qb2 $11 {remains equal.}) 20... g4 $17 {[%emt 0:11:57]} 21. hxg4 {[%emt 0:09:19]} Nxg4 {[%emt 0:00:38]} 22. Rxf8+ {[%emt 0:13:31]} (22. Rf3 $17 {was forced.}) 22... Rxf8 $19 {[%emt 0:01:00]} 23. Qxa7 $2 {[%emt 0:00:22]} (23. Rxf8+ Qxf8 24. Qb2 Qf6 $19) (23. Rf3 {was the crucial defense.}) 23... Rxf1+ {[%emt 0:00:34]} 24. Kxf1 {[%emt 0:00:27]} (24. Bxf1 $2 {is the wrong capture.} Qf6) 24... Qf6+ {[%emt 0:00:18]} 25. Ke2 {[%emt 0:00:21]} Qf2+ {[%emt 0:00:39]} 26. Kd1 {[%emt 0:00:02]} Ne3+ {[%emt 0:06:09]} 27. Bxe3 {[%emt 0:02:07]} Bg4+ {[%emt 0:00:08]} 28. Kc1 {[%emt 0:00:03]} Qxe3+ {[%emt 0:00:22][%mdl 4096] Endgame KQB-KQB. White is a pawn up.} 29. Kc2 {[%emt 0:00:02] [#]} Bd1+ $1 {[%emt 0:01:38][%mdl 512]} 30. Kxd1 $11 {[%emt 0:00:02]} Qxd3+ {[%emt 0:00:06]} 31. Kc1 {[%emt 0:00:09]} Qxc3+ {[%emt 0:00:08]} 32. Kb1 {[%emt 0:00:04]} Qe1+ {[%emt 0:00:23]} (32... Qxc4 $5 33. Qb8+ $8 Kh7 34. Qxe5 Qf1+ 35. Kb2 Qxg2+ 36. Ka3 Qf1 $11) 33. Kb2 {[%emt 0:00:18]} Qd2+ {[%emt 0:00:45]} 34. Kb1 {[%emt 0:00:11]} Qd1+ {[%emt 0:00:29]} ({Resist} 34... Qd3+ 35. Kb2 $17) 35. Kb2 {[%emt 0:00:02]} 1/2-1/2